Workbook

Sheet 水道料金等計算
C1: 西播磨水道企業団 水道料金計算表（２か月計算）
A2: お住まいの地区、口径を選択し、使用水量を入力して計算ボタンを押してください。 ２か月分の水道料金、下水道使用料（参考）が表示されます。
B3: ✓ | C3: 地区(相生、揖保川町、御津町）
B4: ✓ | C4: 口径（㎜）
B5: ✓ | C5: 使用水量（㎥）
B8: 上水道料金 | D8: =IF(OR(D3="",D4="",D5="",'2ヶ月料金計算'!C6="",'2ヶ月料金計算（大口径）'!C6=""),"",IF(D4=1,'2ヶ月料金計算'!C16,IF(D4=2,'2ヶ月料金計算'!C18,IF(D4=3,'2ヶ月料金計算'!C20,IF(D4=4,'2ヶ月料金計算（大口径）'!C16,IF(D4=5,'2ヶ月料金計算（大口径）'!C18,IF(D4=6,'2ヶ月料金計算（大口径）'!C20,IF(D4=7,'2ヶ月料金計算（大口径）'!C22,IF(D4=8,'2ヶ月料金計算（大口径）'!C24))))))))) -> 
B9: 下水道使用量（参考） | D9: =IF(D8="","",IF(D3=1,'2ヶ月料金計算'!F16,'2ヶ月料金計算'!F17)) -> 
B10: 合計（参考） | D10: =IF(D8="","",D8+D9) -> 
A11: ご注意 ※１ この水道料金計算表は､２か月分の水道料金等になります｡使用開始が月の途中など特別な計算が適用 されるお客さまは、西播磨水道企業団営業課までお問合せください。 ※２ 下水道使用料の詳細については､相生市又はたつの市にお問合せください。 ※３ 令和４年４月１日からの相生市下水道使用料改定後の計算表です。

Sheet 0.5ヶ月料金計算 (hidden)
I2: （水道料金）
H3: 税率 | J3: 従量料金計算
A4: =C6 -> 25 | C4: 水量を入力してください。 | H4: 10 | J4: １ケ月目 | R4: + | S4: ２ケ月目 | AA4: +
L5: =C6 -> 25 | M5: ㎥ | U5: =A4-L5 -> 0 | V5: ㎥ | AB5: 基本料金
C6: 25 | K6: 単価 | L6: 税込み単価 | T6: 単価 | U6: 税込み単価 | AB6: 口径 | AC6: 単価 | AD6: 1ケ月 | AF6: 0.5ヶ月 | AG6: ２ケ月
I7: 5 | J7: 6～10 | K7: 43 | L7: =K7*(1+$H$4/100) -> 47.3 | M7: 円 | N7: × | O7: =IF(L5>=10,I7,IF(L5>5,L5-5,0)) -> 5 | P7: =L7*O7 -> 236.5 | Q7: 円 | S7: 6～10 | T7: 43 | U7: =T7*(1+$H$4/100) -> 47.3 | V7: 円 | W7: × | X7: =IF(U5>=10,I7,IF(U5>5,U5-5,0)) -> 0 | Y7: =U7*X7 -> 0 | Z7: 円 | AB7: 13mm | AC7: 543 | AD7: =AC7*(1+$H$4/100) -> 597.3 | AE7: 円 | AF7: =INT(AD7/2) -> 298 | AG7: =INT(AD7*2) -> 1194 | AH7: 円
H8: ㎥ | I8: 10 | J8: 11～20 | K8: 90 | L8: =K8*(1+$H$4/100) -> 99 | M8: 円 | N8: × | O8: =IF(L5>=20,I8,IF(L5>10,L5-10,0)) -> 10 | P8: =L8*O8 -> 990 | Q8: 円 | S8: 11～20 | T8: 90 | U8: =T8*(1+$H$4/100) -> 99 | V8: 円 | W8: × | X8: =IF(U5>=20,I8,IF(U5>10,U5-10,0)) -> 0 | Y8: =U8*X8 -> 0 | Z8: 円 | AB8: 20mm | AC8: 714 | AD8: =AC8*(1+$H$4/100) -> 785.4 | AE8: 円 | AF8: =INT(AD8/2) -> 392 | AG8: =INT(AD8*2) -> 1570 | AH8: 円
I9: 10 | J9: 21～30 | K9: 129 | L9: 141.9 | M9: 円 | N9: × | O9: =IF(L5>=30,I9,IF(L5>20,L5-20,0)) -> 5 | P9: 709.5 | Q9: 円 | S9: 21～30 | T9: 129 | U9: 141.9 | V9: 円 | W9: × | X9: =IF(U5>=30,I9,IF(U5>20,U5-20,0)) -> 0 | Y9: =U9*X9 -> 0 | Z9: 円 | AB9: 25mm | AC9: 1581 | AD9: 1739.1 | AE9: 円 | AF9: 869 | AG9: =INT(AD9*2) -> 3478 | AH9: 円
I10: 20 | J10: 31～50 | K10: 157 | L10: 172.7 | M10: 円 | N10: × | O10: =IF(L5>=50,I10,IF(L5>30,L5-30,0)) -> 0 | P10: 0 | Q10: 円 | S10: 31～50 | T10: 157 | U10: 172.7 | V10: 円 | W10: × | X10: =IF(U5>=50,I10,IF(U5>30,U5-30,0)) -> 0 | Y10: =U10*X10 -> 0 | Z10: 円 | AB10: 40mm | AC10: 3752 | AD10: 4127.2 | AE10: 円 | AF10: 2063 | AG10: =INT(AD10*2) -> 8254 | AH10: 円
I11: 50 | J11: 51～100 | K11: 186 | L11: 204.6 | M11: 円 | N11: × | O11: =IF(L5>=100,I11,IF(L5>50,L5-50,0)) -> 0 | P11: 0 | Q11: 円 | S11: 51～100 | T11: 186 | U11: 204.6 | V11: 円 | W11: × | X11: =IF(U5>=100,I11,IF(U5>50,U5-50,0)) -> 0 | Y11: 0 | Z11: 円 | AB11: 50mm | AC11: 6952 | AD11: 7647.2 | AE11: 円 | AF11: 3823 | AG11: 15294 | AH11: 円
I12: 100 | J12: 101～200 | K12: 214 | L12: 235.4 | M12: 円 | N12: × | O12: =IF(L5>=200,I12,IF(L5>100,L5-100,0)) -> 0 | P12: 0 | Q12: 円 | S12: 101～200 | T12: 214 | U12: 235.4 | V12: 円 | W12: × | X12: =IF(U5>=200,I12,IF(U5>100,U5-100,0)) -> 0 | Y12: 0 | Z12: 円 | AB12: 75mm | AC12: 17114 | AD12: 18825.4 | AE12: 円 | AF12: 9412 | AG12: 37650 | AH12: 円
J13: 201～ | K13: 224 | L13: 246.4 | M13: 円 | N13: × | O13: =IF(L5>=200,L5-200,0) -> 0 | P13: 0 | Q13: 円 | S13: 201～ | T13: 224 | U13: 246.4 | V13: 円 | W13: × | X13: =IF(U5>=200,U5-200,0) -> 0 | Y13: 0 | Z13: 円 | AB13: 100mm | AC13: 34114 | AD13: 37525.4 | AE13: 円 | AF13: 18762 | AG13: 75050 | AH13: 円
B14: 0.5ケ月計算 | E14: ※水量以外のセルへの入力や消去はしないでください。 | J14: (㎥) | O14: 計 | P14: =SUM(P7:P13) -> 1936 | Q14: 円 | S14: (㎥) | X14: 計 | Y14: =SUM(Y7:Y13) -> 0 | Z14: 円 | AB14: 300mm | AC14: 526276 | AD14: 578903.6 | AE14: 円 | AF14: 289451 | AG14: 1157807 | AH14: 円
C15: 水道料金 | E15: 下水道使用料 | G15: 合 計
B16: 13mm | C16: =P16 -> 2234 | E16: 相 | F16: =O38 -> 4375 | G16: 相 | H16: =C16+F16 -> 6609 | N16: 13 | P16: =INT(P14+AF7) -> 2234 | W16: 13 | Y16: =INT(Y14+AD7) -> 597
E17: た | F17: =O53 -> 3300 | G17: た | H17: =C16+F17 -> 5534 | N17: 20 | P17: =INT(P14+AF8) -> 2328 | W17: 20 | Y17: =INT(Y14+AD8) -> 785
B18: 20mm | C18: =P17 -> 2328 | E18: 相 | F18: =O38 -> 4375 | G18: 相 | H18: =C18+F18 -> 6703 | N18: 25 | P18: =INT(P14+AF9) -> 2805 | W18: 25 | Y18: =INT(Y14+AD9) -> 1739
E19: た | F19: =O53 -> 3300 | G19: た | H19: =C18+F19 -> 5628 | N19: 40 | O19: =INT(P14+AD10) -> 6063 | W19: 40 | X19: =INT(Y14+AD10) -> 4127
B20: 25mm | C20: =P18 -> 2805 | E20: 相 | F20: =O38 -> 4375 | G20: 相 | H20: =C20+F20 -> 7180 | N20: 50 | P20: =INT(P14+AD11) -> 9583 | W20: 50 | Y20: =INT(Y14+AD11) -> 7647
E21: た | F21: =O53 -> 3300 | G21: た | H21: =C20+F21 -> 6105 | N21: 75 | O21: =INT(P14+AD12) -> 20761 | W21: 75 | X21: =INT(Y14+AD12) -> 18825
N22: 100 | P22: =INT(P14+AD13) -> 39461 | W22: 100 | Y22: =INT(Y14+AD13) -> 37525
I23: （相生下水） | N23: 300 | O23: =INT(P14+AD14) -> 580839 | W23: 300 | X23: =INT(Y14+AD14) -> 578903
J24: 従量料金計算
J25: １ケ月目 | R25: + | S25: ２ケ月目 | AA25: +
L26: =C6 -> 25 | M26: ㎥ | U26: =A4-L26 -> 0 | V26: ㎥ | AB26: 基本料金 | AC26: 単価 | AD26: 1173
K27: 単価 | L27: 税込み単価 | T27: 単価 | U27: 税込み単価 | AB27: 1ケ月（円） | AE27: 2ケ月（円）
I28: 5 | J28: 6～10 | K28: 42 | L28: =K28*(1+$H$4/100) -> 46.2 | M28: 円 | N28: × | O28: =IF(L26>=10,I28,IF(L26>5,L26-5,0)) -> 5 | P28: =L28*O28 -> 231 | Q28: 円 | S28: 6～10 | T28: 42 | U28: =T28*(1+$H$4/100) -> 46.2 | V28: 円 | W28: × | X28: =IF(U26>=10,I28,IF(U26>5,U26-5,0)) -> 0 | Y28: =U28*X28 -> 0 | Z28: 円 | AB28: =AD26*(1+$H$4/100) -> 1290.3 | AE28: =AB28*2 -> 2580.6
I29: 10 | J29: 11～20 | K29: 159 | L29: =K29*(1+$H$4/100) -> 174.9 | M29: 円 | N29: × | O29: =IF(L26>=20,I29,IF(L26>10,L26-10,0)) -> 10 | P29: =L29*O29 -> 1749 | Q29: 円 | S29: 11～20 | T29: 159 | U29: =T29*(1+$H$4/100) -> 174.9 | V29: 円 | W29: × | X29: =IF(U26>=20,I29,IF(U26>10,U26-10,0)) -> 0 | Y29: =U29*X29 -> 0 | Z29: 円
I30: 10 | J30: 21～30 | K30: 201 | L30: 221.1 | M30: 円 | N30: × | O30: =IF(L26>=30,I30,IF(L26>20,L26-20,0)) -> 5 | P30: =L30*O30 -> 1105.5 | Q30: 円 | S30: 21～30 | T30: 201 | U30: 221.1 | V30: 円 | W30: × | X30: =IF(U26>=30,I30,IF(U26>20,U26-20,0)) -> 0 | Y30: =U30*X30 -> 0 | Z30: 円
I31: 20 | J31: 31～50 | K31: 224 | L31: 246.4 | M31: 円 | N31: × | O31: =IF(L26>=50,I31,IF(L26>30,L26-30,0)) -> 0 | P31: 0 | Q31: 円 | S31: 31～50 | T31: 224 | U31: 246.4 | V31: 円 | W31: × | X31: =IF(U26>=50,I31,IF(U26>30,U26-30,0)) -> 0 | Y31: =U31*X31 -> 0 | Z31: 円
I32: 50 | J32: 51～100 | K32: 245 | L32: 269.5 | M32: 円 | N32: × | O32: =IF(L26>=100,I32,IF(L26>50,L26-50,0)) -> 0 | P32: 0 | Q32: 円 | S32: 51～100 | T32: 245 | U32: 269.5 | V32: 円 | W32: × | X32: =IF(U26>=100,I32,IF(U26>50,U26-50,0)) -> 0 | Y32: 0 | Z32: 円
I33: 100 | J33: 101～200 | K33: 266 | L33: 292.6 | M33: 円 | N33: × | O33: =IF(L26>=200,I33,IF(L26>100,L26-100,0)) -> 0 | P33: 0 | Q33: 円 | S33: 101～200 | T33: 266 | U33: 292.6 | V33: 円 | W33: × | X33: =IF(U26>=200,I33,IF(U26>100,U26-100,0)) -> 0 | Y33: 0 | Z33: 円
I34: 200 | J34: 201～ | K34: 276 | L34: 303.6 | M34: 円 | N34: × | O34: =IF(L26>=200,L26-200,0) -> 0 | P34: 0 | Q34: 円 | S34: 201～ | T34: 276 | U34: 303.6 | V34: 円 | W34: × | X34: =IF(U26>=200,U26-200,0) -> 0 | Y34: 0 | Z34: 円
J35: (㎥) | O35: 計 | P35: =SUM(P28:P34) -> 3085.5 | Q35: 円 | S35: (㎥) | X35: 計 | Y35: =SUM(Y28:Y34) -> 0 | Z35: 円
O38: =INT(P35+AB28) -> 4375 | X38: =INT(Y35+AB28) -> 1290
I41: （たつの下水） | N41: 25 | W41: 25
J42: 従量料金計算
J43: １ケ月目 | R43: + | S43: ２ケ月目 | AA43: +
L44: =C6 -> 25 | M44: ㎥ | U44: =A4-L44 -> 0 | V44: ㎥ | AB44: 基本料金 | AC44: 単価 | AD44: 900
K45: 単価 | L45: 税込み単価 | T45: 単価 | U45: 税込み単価 | AB45: 1ケ月（円） | AE45: 2ケ月（円）
I46: 10 | J46: 11～20 | K46: 130 | L46: =K46*(1+$H$4/100) -> 143 | M46: 円 | N46: × | O46: =IF(L44>=20,I46,IF(L44>10,L44-10,0)) -> 10 | P46: =L46*O46 -> 1430 | Q46: 円 | S46: 11～20 | T46: 130 | U46: =T46*(1+$H$4/100) -> 143 | V46: 円 | W46: × | X46: =IF(U44>=20,I46,IF(U44>10,U44-10,0)) -> 0 | Y46: =U46*X46 -> 0 | Z46: 円 | AB46: =AD44*(1+$H$4/100) -> 990 | AE46: =AB46*2 -> 1980
I47: 20 | J47: 21～40 | K47: 160 | L47: =K47*(1+$H$4/100) -> 176 | M47: 円 | N47: × | O47: =IF(L44>=40,I47,IF(L44>20,L44-20,0)) -> 5 | P47: =L47*O47 -> 880 | Q47: 円 | S47: 21～40 | T47: 160 | U47: =T47*(1+$H$4/100) -> 176 | V47: 円 | W47: × | X47: =IF(U44>=40,I47,IF(U44>20,U44-20,0)) -> 0 | Y47: =U47*X47 -> 0 | Z47: 円
I48: 60 | J48: 41～100 | K48: 200 | L48: 220 | M48: 円 | N48: × | O48: =IF(L44>=100,I48,IF(L44>40,L44-40,0)) -> 0 | P48: =L48*O48 -> 0 | Q48: 円 | S48: 41～100 | T48: 200 | U48: 220 | V48: 円 | W48: × | X48: =IF(U44>=100,I48,IF(U44>40,U44-40,0)) -> 0 | Y48: =U48*X48 -> 0 | Z48: 円
J49: 101～ | K49: 220 | L49: 242 | M49: 円 | N49: × | O49: =IF(L44>=100,L44-100,0) -> 0 | P49: 0 | Q49: 円 | S49: 101～ | T49: 220 | U49: 242 | V49: 円 | W49: × | X49: =IF(U44>=100,U44-100,0) -> 0 | Y49: 0 | Z49: 円
J50: (㎥) | O50: 計 | P50: =SUM(P46:P49) -> 2310 | Q50: 円 | S50: (㎥) | X50: 計 | Y50: =SUM(Y46:Y49) -> 0 | Z50: 円
O53: =INT(P50+AB46) -> 3300 | X53: =INT(Y50+AB46) -> 990

Sheet 1ヶ月料金計算 (hidden)
I2: （水道料金）
H3: 税率 | J3: 従量料金計算
A4: =C6 -> 25 | C4: 水量を入力してください。 | H4: 10 | J4: １ケ月目 | R4: + | S4: ２ケ月目 | AA4: +
L5: =C6 -> 25 | M5: ㎥ | U5: =A4-L5 -> 0 | V5: ㎥ | AB5: 基本料金
C6: 25 | K6: 単価 | L6: 税込み単価 | T6: 単価 | U6: 税込み単価 | AB6: 口径 | AC6: 単価 | AD6: 1ケ月 | AF6: ２ケ月
I7: 5 | J7: 6～10 | K7: 43 | L7: =K7*(1+$H$4/100) -> 47.3 | M7: 円 | N7: × | O7: =IF(L5>=10,I7,IF(L5>5,L5-5,0)) -> 5 | P7: =L7*O7 -> 236.5 | Q7: 円 | S7: 6～10 | T7: 43 | U7: =T7*(1+$H$4/100) -> 47.3 | V7: 円 | W7: × | X7: =IF(U5>=10,I7,IF(U5>5,U5-5,0)) -> 0 | Y7: =U7*X7 -> 0 | Z7: 円 | AB7: 13mm | AC7: 543 | AD7: =AC7*(1+$H$4/100) -> 597.3 | AE7: 円 | AF7: =INT(AD7*2) -> 1194 | AG7: 円
H8: ㎥ | I8: 10 | J8: 11～20 | K8: 90 | L8: =K8*(1+$H$4/100) -> 99 | M8: 円 | N8: × | O8: =IF(L5>=20,I8,IF(L5>10,L5-10,0)) -> 10 | P8: =L8*O8 -> 990 | Q8: 円 | S8: 11～20 | T8: 90 | U8: =T8*(1+$H$4/100) -> 99 | V8: 円 | W8: × | X8: =IF(U5>=20,I8,IF(U5>10,U5-10,0)) -> 0 | Y8: =U8*X8 -> 0 | Z8: 円 | AB8: 20mm | AC8: 714 | AD8: =AC8*(1+$H$4/100) -> 785.4 | AE8: 円 | AF8: =INT(AD8*2) -> 1570 | AG8: 円
I9: 10 | J9: 21～30 | K9: 129 | L9: 141.9 | M9: 円 | N9: × | O9: =IF(L5>=30,I9,IF(L5>20,L5-20,0)) -> 5 | P9: 709.5 | Q9: 円 | S9: 21～30 | T9: 129 | U9: 141.9 | V9: 円 | W9: × | X9: =IF(U5>=30,I9,IF(U5>20,U5-20,0)) -> 0 | Y9: =U9*X9 -> 0 | Z9: 円 | AB9: 25mm | AC9: 1581 | AD9: 1739.1 | AE9: 円 | AF9: =INT(AD9*2) -> 3478 | AG9: 円
I10: 20 | J10: 31～50 | K10: 157 | L10: 172.7 | M10: 円 | N10: × | O10: =IF(L5>=50,I10,IF(L5>30,L5-30,0)) -> 0 | P10: 0 | Q10: 円 | S10: 31～50 | T10: 157 | U10: 172.7 | V10: 円 | W10: × | X10: =IF(U5>=50,I10,IF(U5>30,U5-30,0)) -> 0 | Y10: =U10*X10 -> 0 | Z10: 円 | AB10: 40mm | AC10: 3752 | AD10: 4127.2 | AE10: 円 | AF10: =INT(AD10*2) -> 8254 | AG10: 円
I11: 50 | J11: 51～100 | K11: 186 | L11: 204.6 | M11: 円 | N11: × | O11: =IF(L5>=100,I11,IF(L5>50,L5-50,0)) -> 0 | P11: 0 | Q11: 円 | S11: 51～100 | T11: 186 | U11: 204.6 | V11: 円 | W11: × | X11: =IF(U5>=100,I11,IF(U5>50,U5-50,0)) -> 0 | Y11: 0 | Z11: 円 | AB11: 50mm | AC11: 6952 | AD11: 7647.2 | AE11: 円 | AF11: 15294 | AG11: 円
I12: 100 | J12: 101～200 | K12: 214 | L12: 235.4 | M12: 円 | N12: × | O12: =IF(L5>=200,I12,IF(L5>100,L5-100,0)) -> 0 | P12: 0 | Q12: 円 | S12: 101～200 | T12: 214 | U12: 235.4 | V12: 円 | W12: × | X12: =IF(U5>=200,I12,IF(U5>100,U5-100,0)) -> 0 | Y12: 0 | Z12: 円 | AB12: 75mm | AC12: 17114 | AD12: 18825.4 | AE12: 円 | AF12: 37650 | AG12: 円
J13: 201～ | K13: 224 | L13: 246.4 | M13: 円 | N13: × | O13: =IF(L5>=200,L5-200,0) -> 0 | P13: 0 | Q13: 円 | S13: 201～ | T13: 224 | U13: 246.4 | V13: 円 | W13: × | X13: =IF(U5>=200,U5-200,0) -> 0 | Y13: 0 | Z13: 円 | AB13: 100mm | AC13: 34114 | AD13: 37525.4 | AE13: 円 | AF13: 75050 | AG13: 円
B14: 1ケ月計算 | E14: ※水量以外のセルへの入力や消去はしないでください。 | J14: (㎥) | O14: 計 | P14: =SUM(P7:P13) -> 1936 | Q14: 円 | S14: (㎥) | X14: 計 | Y14: =SUM(Y7:Y13) -> 0 | Z14: 円 | AB14: 300mm | AC14: 526276 | AD14: 578903.6 | AE14: 円 | AF14: 1157807 | AG14: 円
C15: 水道料金 | E15: 下水道使用料 | G15: 合 計
B16: 13mm | C16: =P16 -> 2533 | E16: 相 | F16: =O38 -> 4375 | G16: 相 | H16: =C16+F16 -> 6908 | N16: 13 | P16: =INT(P14+AD7) -> 2533 | W16: 13 | Y16: =INT(Y14+AD7) -> 597
E17: た | F17: =O53 -> 3300 | G17: た | H17: =C16+F17 -> 5833 | N17: 20 | P17: =INT(P14+AD8) -> 2721 | W17: 20 | Y17: =INT(Y14+AD8) -> 785
B18: 20mm | C18: =P17 -> 2721 | E18: 相 | F18: =O38 -> 4375 | G18: 相 | H18: =C18+F18 -> 7096 | N18: 25 | P18: =INT(P14+AD9) -> 3675 | W18: 25 | Y18: =INT(Y14+AD9) -> 1739
E19: た | F19: =O53 -> 3300 | G19: た | H19: =C18+F19 -> 6021 | N19: 40 | O19: =INT(P14+AD10) -> 6063 | W19: 40 | X19: =INT(Y14+AD10) -> 4127
B20: 25mm | C20: =P18 -> 3675 | E20: 相 | F20: =O38 -> 4375 | G20: 相 | H20: =C20+F20 -> 8050 | N20: 50 | P20: =INT(P14+AD11) -> 9583 | W20: 50 | Y20: =INT(Y14+AD11) -> 7647
E21: た | F21: =O53 -> 3300 | G21: た | H21: =C20+F21 -> 6975 | N21: 75 | O21: =INT(P14+AD12) -> 20761 | W21: 75 | X21: =INT(Y14+AD12) -> 18825
N22: 100 | P22: =INT(P14+AD13) -> 39461 | W22: 100 | Y22: =INT(Y14+AD13) -> 37525
I23: （相生下水） | N23: 300 | O23: =INT(P14+AD14) -> 580839 | W23: 300 | X23: =INT(Y14+AD14) -> 578903
J24: 従量料金計算
J25: １ケ月目 | R25: + | S25: ２ケ月目 | AA25: +
L26: =C6 -> 25 | M26: ㎥ | U26: =A4-L26 -> 0 | V26: ㎥ | AB26: 基本料金 | AC26: 単価 | AD26: 1173
K27: 単価 | L27: 税込み単価 | T27: 単価 | U27: 税込み単価 | AB27: 1ケ月（円） | AE27: 2ケ月（円）
I28: 5 | J28: 6～10 | K28: 42 | L28: =K28*(1+$H$4/100) -> 46.2 | M28: 円 | N28: × | O28: =IF(L26>=10,I28,IF(L26>5,L26-5,0)) -> 5 | P28: =L28*O28 -> 231 | Q28: 円 | S28: 6～10 | T28: 42 | U28: =T28*(1+$H$4/100) -> 46.2 | V28: 円 | W28: × | X28: =IF(U26>=10,I28,IF(U26>5,U26-5,0)) -> 0 | Y28: =U28*X28 -> 0 | Z28: 円 | AB28: =AD26*(1+$H$4/100) -> 1290.3 | AE28: =AB28*2 -> 2580.6
I29: 10 | J29: 11～20 | K29: 159 | L29: =K29*(1+$H$4/100) -> 174.9 | M29: 円 | N29: × | O29: =IF(L26>=20,I29,IF(L26>10,L26-10,0)) -> 10 | P29: =L29*O29 -> 1749 | Q29: 円 | S29: 11～20 | T29: 159 | U29: =T29*(1+$H$4/100) -> 174.9 | V29: 円 | W29: × | X29: =IF(U26>=20,I29,IF(U26>10,U26-10,0)) -> 0 | Y29: =U29*X29 -> 0 | Z29: 円
I30: 10 | J30: 21～30 | K30: 201 | L30: 221.1 | M30: 円 | N30: × | O30: =IF(L26>=30,I30,IF(L26>20,L26-20,0)) -> 5 | P30: =L30*O30 -> 1105.5 | Q30: 円 | S30: 21～30 | T30: 201 | U30: 221.1 | V30: 円 | W30: × | X30: =IF(U26>=30,I30,IF(U26>20,U26-20,0)) -> 0 | Y30: =U30*X30 -> 0 | Z30: 円
I31: 20 | J31: 31～50 | K31: 224 | L31: 246.4 | M31: 円 | N31: × | O31: =IF(L26>=50,I31,IF(L26>30,L26-30,0)) -> 0 | P31: 0 | Q31: 円 | S31: 31～50 | T31: 224 | U31: 246.4 | V31: 円 | W31: × | X31: =IF(U26>=50,I31,IF(U26>30,U26-30,0)) -> 0 | Y31: =U31*X31 -> 0 | Z31: 円
I32: 50 | J32: 51～100 | K32: 245 | L32: 269.5 | M32: 円 | N32: × | O32: =IF(L26>=100,I32,IF(L26>50,L26-50,0)) -> 0 | P32: 0 | Q32: 円 | S32: 51～100 | T32: 245 | U32: 269.5 | V32: 円 | W32: × | X32: =IF(U26>=100,I32,IF(U26>50,U26-50,0)) -> 0 | Y32: 0 | Z32: 円
I33: 100 | J33: 101～200 | K33: 266 | L33: 292.6 | M33: 円 | N33: × | O33: =IF(L26>=200,I33,IF(L26>100,L26-100,0)) -> 0 | P33: 0 | Q33: 円 | S33: 101～200 | T33: 266 | U33: 292.6 | V33: 円 | W33: × | X33: =IF(U26>=200,I33,IF(U26>100,U26-100,0)) -> 0 | Y33: 0 | Z33: 円
I34: 200 | J34: 201～ | K34: 276 | L34: 303.6 | M34: 円 | N34: × | O34: =IF(L26>=200,L26-200,0) -> 0 | P34: 0 | Q34: 円 | S34: 201～ | T34: 276 | U34: 303.6 | V34: 円 | W34: × | X34: =IF(U26>=200,U26-200,0) -> 0 | Y34: 0 | Z34: 円
J35: (㎥) | O35: 計 | P35: =SUM(P28:P34) -> 3085.5 | Q35: 円 | S35: (㎥) | X35: 計 | Y35: =SUM(Y28:Y34) -> 0 | Z35: 円
O38: =INT(P35+AB28) -> 4375 | X38: =INT(Y35+AB28) -> 1290
I41: （たつの下水） | N41: 25 | W41: 25
J42: 従量料金計算
J43: １ケ月目 | R43: + | S43: ２ケ月目 | AA43: +
L44: =C6 -> 25 | M44: ㎥ | U44: =A4-L44 -> 0 | V44: ㎥ | AB44: 基本料金 | AC44: 単価 | AD44: 900
K45: 単価 | L45: 税込み単価 | T45: 単価 | U45: 税込み単価 | AB45: 1ケ月（円） | AE45: 2ケ月（円）
I46: 10 | J46: 11～20 | K46: 130 | L46: =K46*(1+$H$4/100) -> 143 | M46: 円 | N46: × | O46: =IF(L44>=20,I46,IF(L44>10,L44-10,0)) -> 10 | P46: =L46*O46 -> 1430 | Q46: 円 | S46: 11～20 | T46: 130 | U46: =T46*(1+$H$4/100) -> 143 | V46: 円 | W46: × | X46: =IF(U44>=20,I46,IF(U44>10,U44-10,0)) -> 0 | Y46: =U46*X46 -> 0 | Z46: 円 | AB46: =AD44*(1+$H$4/100) -> 990 | AE46: =AB46*2 -> 1980
I47: 20 | J47: 21～40 | K47: 160 | L47: =K47*(1+$H$4/100) -> 176 | M47: 円 | N47: × | O47: =IF(L44>=40,I47,IF(L44>20,L44-20,0)) -> 5 | P47: =L47*O47 -> 880 | Q47: 円 | S47: 21～40 | T47: 160 | U47: =T47*(1+$H$4/100) -> 176 | V47: 円 | W47: × | X47: =IF(U44>=40,I47,IF(U44>20,U44-20,0)) -> 0 | Y47: =U47*X47 -> 0 | Z47: 円
I48: 60 | J48: 41～100 | K48: 200 | L48: 220 | M48: 円 | N48: × | O48: =IF(L44>=100,I48,IF(L44>40,L44-40,0)) -> 0 | P48: =L48*O48 -> 0 | Q48: 円 | S48: 41～100 | T48: 200 | U48: 220 | V48: 円 | W48: × | X48: =IF(U44>=100,I48,IF(U44>40,U44-40,0)) -> 0 | Y48: =U48*X48 -> 0 | Z48: 円
J49: 101～ | K49: 220 | L49: 242 | M49: 円 | N49: × | O49: =IF(L44>=100,L44-100,0) -> 0 | P49: 0 | Q49: 円 | S49: 101～ | T49: 220 | U49: 242 | V49: 円 | W49: × | X49: =IF(U44>=100,U44-100,0) -> 0 | Y49: 0 | Z49: 円
J50: (㎥) | O50: 計 | P50: =SUM(P46:P49) -> 2310 | Q50: 円 | S50: (㎥) | X50: 計 | Y50: =SUM(Y46:Y49) -> 0 | Z50: 円
O53: =INT(P50+AB46) -> 3300 | X53: =INT(Y50+AB46) -> 990

Sheet 2ヶ月料金計算 (hidden)
I2: （水道料金） | AI2: 相生市
H3: 税率 | J3: 従量料金計算 | AI3: たつの市（揖保川町、御津町）
A4: =C6 -> 0 | C4: 水量を入力してください。 | H4: 10 | J4: １ケ月目 | R4: + | S4: ２ケ月目 | AA4: +
L5: =ROUNDDOWN(A4/2,0) -> 0 | M5: ㎥ | U5: =A4-L5 -> 0 | V5: ㎥ | AB5: 基本料金
K6: 単価 | L6: 税込み単価 | T6: 単価 | U6: 税込み単価 | AB6: 口径 | AC6: 単価 | AD6: 1ケ月 | AF6: ２ケ月
I7: 5 | J7: 6～10 | K7: 43 | L7: =K7*(1+$H$4/100) -> 47.3 | M7: 円 | N7: × | O7: =IF(L5>=10,I7,IF(L5>5,L5-5,0)) -> 0 | P7: =L7*O7 -> 0 | Q7: 円 | S7: 6～10 | T7: 43 | U7: =T7*(1+$H$4/100) -> 47.3 | V7: 円 | W7: × | X7: =IF(U5>=10,I7,IF(U5>5,U5-5,0)) -> 0 | Y7: =U7*X7 -> 0 | Z7: 円 | AB7: 13mm | AC7: 543 | AD7: =AC7*(1+$H$4/100) -> 597.3 | AE7: 円 | AF7: =INT(AD7*2) -> 1194 | AG7: 円
H8: ㎥ | I8: 10 | J8: 11～20 | K8: 90 | L8: =K8*(1+$H$4/100) -> 99 | M8: 円 | N8: × | O8: =IF(L5>=20,I8,IF(L5>10,L5-10,0)) -> 0 | P8: =L8*O8 -> 0 | Q8: 円 | S8: 11～20 | T8: 90 | U8: =T8*(1+$H$4/100) -> 99 | V8: 円 | W8: × | X8: =IF(U5>=20,I8,IF(U5>10,U5-10,0)) -> 0 | Y8: =U8*X8 -> 0 | Z8: 円 | AB8: 20mm | AC8: 714 | AD8: =AC8*(1+$H$4/100) -> 785.4 | AE8: 円 | AF8: =INT(AD8*2) -> 1570 | AG8: 円
I9: 10 | J9: 21～30 | K9: 129 | L9: 141.9 | M9: 円 | N9: × | O9: =IF(L5>=30,I9,IF(L5>20,L5-20,0)) -> 0 | P9: 0 | Q9: 円 | S9: 21～30 | T9: 129 | U9: 141.9 | V9: 円 | W9: × | X9: =IF(U5>=30,I9,IF(U5>20,U5-20,0)) -> 0 | Y9: =U9*X9 -> 0 | Z9: 円 | AB9: 25mm | AC9: 1581 | AD9: 1739.1 | AE9: 円 | AF9: =INT(AD9*2) -> 3478 | AG9: 円
I10: 20 | J10: 31～50 | K10: 157 | L10: 172.7 | M10: 円 | N10: × | O10: =IF(L5>=50,I10,IF(L5>30,L5-30,0)) -> 0 | P10: 0 | Q10: 円 | S10: 31～50 | T10: 157 | U10: 172.7 | V10: 円 | W10: × | X10: =IF(U5>=50,I10,IF(U5>30,U5-30,0)) -> 0 | Y10: =U10*X10 -> 0 | Z10: 円 | AB10: 40mm | AC10: 3752 | AD10: 4127.2 | AE10: 円 | AF10: =INT(AD10*2) -> 8254 | AG10: 円
I11: 50 | J11: 51～100 | K11: 186 | L11: 204.6 | M11: 円 | N11: × | O11: =IF(L5>=100,I11,IF(L5>50,L5-50,0)) -> 0 | P11: 0 | Q11: 円 | S11: 51～100 | T11: 186 | U11: 204.6 | V11: 円 | W11: × | X11: =IF(U5>=100,I11,IF(U5>50,U5-50,0)) -> 0 | Y11: 0 | Z11: 円 | AB11: 50mm | AC11: 6952 | AD11: 7647.2 | AE11: 円 | AF11: 15294 | AG11: 円
I12: 100 | J12: 101～200 | K12: 214 | L12: 235.4 | M12: 円 | N12: × | O12: =IF(L5>=200,I12,IF(L5>100,L5-100,0)) -> 0 | P12: 0 | Q12: 円 | S12: 101～200 | T12: 214 | U12: 235.4 | V12: 円 | W12: × | X12: =IF(U5>=200,I12,IF(U5>100,U5-100,0)) -> 0 | Y12: 0 | Z12: 円 | AB12: 75mm | AC12: 17114 | AD12: 18825.4 | AE12: 円 | AF12: 37650 | AG12: 円
J13: 201～ | K13: 224 | L13: 246.4 | M13: 円 | N13: × | O13: =IF(L5>=200,L5-200,0) -> 0 | P13: 0 | Q13: 円 | S13: 201～ | T13: 224 | U13: 246.4 | V13: 円 | W13: × | X13: =IF(U5>=200,U5-200,0) -> 0 | Y13: 0 | Z13: 円 | AB13: 100mm | AC13: 34114 | AD13: 37525.4 | AE13: 円 | AF13: 75050 | AG13: 円
B14: ２ケ月計算 | E14: ※水量以外のセルへの入力や消去はしないでください。 | J14: (㎥) | O14: 計 | P14: =SUM(P7:P13) -> 0 | Q14: 円 | S14: (㎥) | X14: 計 | Y14: =SUM(Y7:Y13) -> 0 | Z14: 円 | AB14: 300mm | AC14: 526276 | AD14: 578903.6 | AE14: 円 | AF14: 1157807 | AG14: 円
C15: 水道料金 | E15: 下水道使用料 | G15: 合 計
B16: 13mm | C16: =P16+Y16 -> 1194 | E16: 相 | F16: =O38+X38 -> 2580 | G16: 相 | H16: =C16+F16 -> 3774 | N16: 13 | P16: =INT(P14+AD7) -> 597 | W16: 13 | Y16: =INT(Y14+AD7) -> 597
E17: た | F17: =O53+X53 -> 1980 | G17: た | H17: =C16+F17 -> 3174 | N17: 20 | P17: =INT(P14+AD8) -> 785 | W17: 20 | Y17: =INT(Y14+AD8) -> 785
B18: 20mm | C18: =P17+Y17 -> 1570 | E18: 相 | F18: =O38+X38 -> 2580 | G18: 相 | H18: =C18+F18 -> 4150 | N18: 25 | P18: =INT(P14+AD9) -> 1739 | W18: 25 | Y18: =INT(Y14+AD9) -> 1739
E19: た | F19: =O53+X53 -> 1980 | G19: た | H19: =C18+F19 -> 3550 | N19: 40 | O19: =INT(P14+AD10) -> 4127 | W19: 40 | X19: =INT(Y14+AD10) -> 4127
B20: 25mm | C20: =P18+Y18 -> 3478 | E20: 相 | F20: =O38+X38 -> 2580 | G20: 相 | H20: =C20+F20 -> 6058 | N20: 50 | P20: =INT(P14+AD11) -> 7647 | W20: 50 | Y20: =INT(Y14+AD11) -> 7647
E21: た | F21: =O53+X53 -> 1980 | G21: た | H21: =C20+F21 -> 5458 | N21: 75 | O21: =INT(P14+AD12) -> 18825 | W21: 75 | X21: =INT(Y14+AD12) -> 18825
N22: 100 | P22: =INT(P14+AD13) -> 37525 | W22: 100 | Y22: =INT(Y14+AD13) -> 37525
I23: （相生下水） | N23: 300 | O23: =INT(P14+AD14) -> 578903 | W23: 300 | X23: =INT(Y14+AD14) -> 578903
J24: 従量料金計算
J25: １ケ月目 | R25: + | S25: ２ケ月目 | AA25: +
L26: =ROUNDDOWN(A4/2,0) -> 0 | M26: ㎥ | U26: =A4-L26 -> 0 | V26: ㎥ | AB26: 基本料金 | AC26: 単価 | AD26: 1173
K27: 単価 | L27: 税込み単価 | T27: 単価 | U27: 税込み単価 | AB27: 1ケ月（円） | AE27: 2ケ月（円）
I28: 5 | J28: 6～10 | K28: 42 | L28: =K28*(1+$H$4/100) -> 46.2 | M28: 円 | N28: × | O28: =IF(L26>=10,I28,IF(L26>5,L26-5,0)) -> 0 | P28: =L28*O28 -> 0 | Q28: 円 | S28: 6～10 | T28: 42 | U28: =T28*(1+$H$4/100) -> 46.2 | V28: 円 | W28: × | X28: =IF(U26>=10,I28,IF(U26>5,U26-5,0)) -> 0 | Y28: =U28*X28 -> 0 | Z28: 円 | AB28: =AD26*(1+$H$4/100) -> 1290.3 | AE28: =AB28*2 -> 2580.6
I29: 10 | J29: 11～20 | K29: 159 | L29: =K29*(1+$H$4/100) -> 174.9 | M29: 円 | N29: × | O29: =IF(L26>=20,I29,IF(L26>10,L26-10,0)) -> 0 | P29: =L29*O29 -> 0 | Q29: 円 | S29: 11～20 | T29: 159 | U29: =T29*(1+$H$4/100) -> 174.9 | V29: 円 | W29: × | X29: =IF(U26>=20,I29,IF(U26>10,U26-10,0)) -> 0 | Y29: =U29*X29 -> 0 | Z29: 円
I30: 10 | J30: 21～30 | K30: 201 | L30: 221.1 | M30: 円 | N30: × | O30: =IF(L26>=30,I30,IF(L26>20,L26-20,0)) -> 0 | P30: =L30*O30 -> 0 | Q30: 円 | S30: 21～30 | T30: 201 | U30: 221.1 | V30: 円 | W30: × | X30: =IF(U26>=30,I30,IF(U26>20,U26-20,0)) -> 0 | Y30: =U30*X30 -> 0 | Z30: 円
I31: 20 | J31: 31～50 | K31: 224 | L31: 246.4 | M31: 円 | N31: × | O31: =IF(L26>=50,I31,IF(L26>30,L26-30,0)) -> 0 | P31: 0 | Q31: 円 | S31: 31～50 | T31: 224 | U31: 246.4 | V31: 円 | W31: × | X31: =IF(U26>=50,I31,IF(U26>30,U26-30,0)) -> 0 | Y31: =U31*X31 -> 0 | Z31: 円
I32: 50 | J32: 51～100 | K32: 245 | L32: 269.5 | M32: 円 | N32: × | O32: =IF(L26>=100,I32,IF(L26>50,L26-50,0)) -> 0 | P32: 0 | Q32: 円 | S32: 51～100 | T32: 245 | U32: 269.5 | V32: 円 | W32: × | X32: =IF(U26>=100,I32,IF(U26>50,U26-50,0)) -> 0 | Y32: 0 | Z32: 円
I33: 100 | J33: 101～200 | K33: 266 | L33: 292.6 | M33: 円 | N33: × | O33: =IF(L26>=200,I33,IF(L26>100,L26-100,0)) -> 0 | P33: 0 | Q33: 円 | S33: 101～200 | T33: 266 | U33: 292.6 | V33: 円 | W33: × | X33: =IF(U26>=200,I33,IF(U26>100,U26-100,0)) -> 0 | Y33: 0 | Z33: 円
I34: 200 | J34: 201～ | K34: 276 | L34: 303.6 | M34: 円 | N34: × | O34: =IF(L26>=200,L26-200,0) -> 0 | P34: 0 | Q34: 円 | S34: 201～ | T34: 276 | U34: 303.6 | V34: 円 | W34: × | X34: =IF(U26>=200,U26-200,0) -> 0 | Y34: 0 | Z34: 円
J35: (㎥) | O35: 計 | P35: =SUM(P28:P34) -> 0 | Q35: 円 | S35: (㎥) | X35: 計 | Y35: =SUM(Y28:Y34) -> 0 | Z35: 円
O38: =INT(P35+AB28) -> 1290 | X38: =INT(Y35+AB28) -> 1290
I41: （たつの下水） | N41: 25 | W41: 25
J42: 従量料金計算
J43: １ケ月目 | R43: + | S43: ２ケ月目 | AA43: +
L44: =ROUNDDOWN(A4/2,0) -> 0 | M44: ㎥ | U44: =A4-L44 -> 0 | V44: ㎥ | AB44: 基本料金 | AC44: 単価 | AD44: 900
K45: 単価 | L45: 税込み単価 | T45: 単価 | U45: 税込み単価 | AB45: 1ケ月（円） | AE45: 2ケ月（円）
I46: 10 | J46: 11～20 | K46: 130 | L46: =K46*(1+$H$4/100) -> 143 | M46: 円 | N46: × | O46: =IF(L44>=20,I46,IF(L44>10,L44-10,0)) -> 0 | P46: =L46*O46 -> 0 | Q46: 円 | S46: 11～20 | T46: 130 | U46: =T46*(1+$H$4/100) -> 143 | V46: 円 | W46: × | X46: =IF(U44>=20,I46,IF(U44>10,U44-10,0)) -> 0 | Y46: =U46*X46 -> 0 | Z46: 円 | AB46: =AD44*(1+$H$4/100) -> 990 | AE46: =AB46*2 -> 1980
I47: 20 | J47: 21～40 | K47: 160 | L47: =K47*(1+$H$4/100) -> 176 | M47: 円 | N47: × | O47: =IF(L44>=40,I47,IF(L44>20,L44-20,0)) -> 0 | P47: =L47*O47 -> 0 | Q47: 円 | S47: 21～40 | T47: 160 | U47: =T47*(1+$H$4/100) -> 176 | V47: 円 | W47: × | X47: =IF(U44>=40,I47,IF(U44>20,U44-20,0)) -> 0 | Y47: =U47*X47 -> 0 | Z47: 円
I48: 60 | J48: 41～100 | K48: 200 | L48: 220 | M48: 円 | N48: × | O48: =IF(L44>=100,I48,IF(L44>40,L44-40,0)) -> 0 | P48: =L48*O48 -> 0 | Q48: 円 | S48: 41～100 | T48: 200 | U48: 220 | V48: 円 | W48: × | X48: =IF(U44>=100,I48,IF(U44>40,U44-40,0)) -> 0 | Y48: =U48*X48 -> 0 | Z48: 円
J49: 101～ | K49: 220 | L49: 242 | M49: 円 | N49: × | O49: =IF(L44>=100,L44-100,0) -> 0 | P49: 0 | Q49: 円 | S49: 101～ | T49: 220 | U49: 242 | V49: 円 | W49: × | X49: =IF(U44>=100,U44-100,0) -> 0 | Y49: 0 | Z49: 円
J50: (㎥) | O50: 計 | P50: =SUM(P46:P49) -> 0 | Q50: 円 | S50: (㎥) | X50: 計 | Y50: =SUM(Y46:Y49) -> 0 | Z50: 円
O53: =INT(P50+AB46) -> 990 | X53: =INT(Y50+AB46) -> 990

Sheet 0.5ヶ月料金計算（大口径） (hidden)
I2: （水道料金）
H3: 税率 | J3: 従量料金計算
A4: =C6 -> 25 | C4: 水量を入力してください。 | H4: 10 | J4: １ケ月目 | R4: + | S4: ２ケ月目 | AA4: +
L5: =A4 -> 25 | M5: ㎥ | U5: =A4-L5 -> 0 | V5: ㎥ | AB5: 基本料金
C6: 25 | K6: 単価 | L6: 税込み単価 | T6: 単価 | U6: 税込み単価 | AB6: 口径 | AC6: 単価 | AD6: 1ケ月 | AF6: 0.5ヶ月 | AG6: ２ケ月
I7: 10 | J7: 6～10 | K7: 43 | L7: =K7*(1+$H$4/100) -> 47.3 | M7: 円 | N7: × | O7: =IF(L5>=10,I7,IF(L5>0,L5-0,0)) -> 10 | P7: =L7*O7 -> 473 | Q7: 円 | S7: 6～10 | T7: 43 | U7: =T7*(1+$H$4/100) -> 47.3 | V7: 円 | W7: × | X7: =IF(U5>=10,I7,IF(U5>0,U5-0,0)) -> 0 | Y7: =U7*X7 -> 0 | Z7: 円 | AB7: 13mm | AC7: 543 | AD7: =AC7*(1+$H$4/100) -> 597.3 | AE7: 円 | AF7: =INT(AD7/2) -> 298 | AG7: =INT(AD7*2) -> 1194 | AH7: 円
H8: ㎥ | I8: 10 | J8: 11～20 | K8: 90 | L8: =K8*(1+$H$4/100) -> 99 | M8: 円 | N8: × | O8: =IF(L5>=20,I8,IF(L5>10,L5-10,0)) -> 10 | P8: =L8*O8 -> 990 | Q8: 円 | S8: 11～20 | T8: 90 | U8: =T8*(1+$H$4/100) -> 99 | V8: 円 | W8: × | X8: =IF(U5>=20,I8,IF(U5>10,U5-10,0)) -> 0 | Y8: =U8*X8 -> 0 | Z8: 円 | AB8: 20mm | AC8: 714 | AD8: =AC8*(1+$H$4/100) -> 785.4 | AE8: 円 | AF8: =INT(AD8/2) -> 392 | AG8: =INT(AD8*2) -> 1570 | AH8: 円
I9: 10 | J9: 21～30 | K9: 129 | L9: 141.9 | M9: 円 | N9: × | O9: =IF(L5>=30,I9,IF(L5>20,L5-20,0)) -> 5 | P9: 709.5 | Q9: 円 | S9: 21～30 | T9: 129 | U9: 141.9 | V9: 円 | W9: × | X9: =IF(U5>=30,I9,IF(U5>20,U5-20,0)) -> 0 | Y9: =U9*X9 -> 0 | Z9: 円 | AB9: 25mm | AC9: 1581 | AD9: 1739.1 | AE9: 円 | AF9: 869 | AG9: =INT(AD9*2) -> 3478 | AH9: 円
I10: 20 | J10: 31～50 | K10: 157 | L10: 172.7 | M10: 円 | N10: × | O10: =IF(L5>=50,I10,IF(L5>30,L5-30,0)) -> 0 | P10: 0 | Q10: 円 | S10: 31～50 | T10: 157 | U10: 172.7 | V10: 円 | W10: × | X10: =IF(U5>=50,I10,IF(U5>30,U5-30,0)) -> 0 | Y10: =U10*X10 -> 0 | Z10: 円 | AB10: 40mm | AC10: 3752 | AD10: 4127.2 | AE10: 円 | AF10: 2063 | AG10: =INT(AD10*2) -> 8254 | AH10: 円
I11: 50 | J11: 51～100 | K11: 186 | L11: 204.6 | M11: 円 | N11: × | O11: =IF(L5>=100,I11,IF(L5>50,L5-50,0)) -> 0 | P11: 0 | Q11: 円 | S11: 51～100 | T11: 186 | U11: 204.6 | V11: 円 | W11: × | X11: =IF(U5>=100,I11,IF(U5>50,U5-50,0)) -> 0 | Y11: 0 | Z11: 円 | AB11: 50mm | AC11: 6952 | AD11: 7647.2 | AE11: 円 | AF11: 3823 | AG11: 15294 | AH11: 円
I12: 100 | J12: 101～200 | K12: 214 | L12: 235.4 | M12: 円 | N12: × | O12: =IF(L5>=200,I12,IF(L5>100,L5-100,0)) -> 0 | P12: 0 | Q12: 円 | S12: 101～200 | T12: 214 | U12: 235.4 | V12: 円 | W12: × | X12: =IF(U5>=200,I12,IF(U5>100,U5-100,0)) -> 0 | Y12: 0 | Z12: 円 | AB12: 75mm | AC12: 17114 | AD12: 18825.4 | AE12: 円 | AF12: 9412 | AG12: 37650 | AH12: 円
J13: 201～ | K13: 224 | L13: 246.4 | M13: 円 | N13: × | O13: =IF(L5>=200,L5-200,0) -> 0 | P13: 0 | Q13: 円 | S13: 201～ | T13: 224 | U13: 246.4 | V13: 円 | W13: × | X13: =IF(U5>=200,U5-200,0) -> 0 | Y13: 0 | Z13: 円 | AB13: 100mm | AC13: 34114 | AD13: 37525.4 | AE13: 円 | AF13: 18762 | AG13: 75050 | AH13: 円
B14: 0.5ケ月計算 | E14: ※水量以外のセルへの入力や消去はしないでください。 | J14: (㎥) | O14: 計 | P14: =SUM(P7:P13) -> 2172.5 | Q14: 円 | S14: (㎥) | X14: 計 | Y14: =SUM(Y7:Y13) -> 0 | Z14: 円 | AB14: 300mm | AC14: 526276 | AD14: 578903.6 | AE14: 円 | AF14: 289451 | AG14: 1157807 | AH14: 円
C15: 水道料金 | E15: 下水道使用料 | G15: 合 計
B16: 40mm | C16: =O19 -> 4235 | E16: 相 | F16: =$O$38 -> 4375 | G16: 相 | H16: =C16+F16 -> 8610 | N16: 13 | P16: =INT(P14+AD7) -> 2769 | W16: 13 | Y16: =INT(Y14+AD7) -> 597
E17: た | F17: =$O$53 -> 3300 | G17: た | H17: =C16+F17 -> 7535 | N17: 20 | P17: =INT(P14+AD8) -> 2957 | W17: 20 | Y17: =INT(Y14+AD8) -> 785
B18: 50mm | C18: =O20 -> 5995 | E18: 相 | F18: =$O$38 -> 4375 | G18: 相 | H18: =C18+F18 -> 10370 | N18: 25 | P18: =INT(P14+AD9) -> 3911 | W18: 25 | Y18: =INT(Y14+AD9) -> 1739
E19: た | F19: =$O$53 -> 3300 | G19: た | H19: =C18+F19 -> 9295 | N19: 40 | O19: =INT(P14+AF10) -> 4235 | W19: 40 | X19: =INT(Y14+AD10) -> 4127
B20: 75mm | C20: =O21 -> 11584 | E20: 相 | F20: =$O$38 -> 4375 | G20: 相 | H20: =C20+F20 -> 15959 | N20: 50 | O20: =INT(P14+AF11) -> 5995 | W20: 50 | X20: =INT(Y14+AD11) -> 7647
E21: た | F21: =$O$53 -> 3300 | G21: た | H21: =C20+F21 -> 14884 | N21: 75 | O21: =INT(P14+AF12) -> 11584 | W21: 75 | X21: =INT(Y14+AD12) -> 18825
B22: 100mm | C22: =O22 -> 20934 | E22: 相 | F22: =$O$38 -> 4375 | G22: 相 | H22: =C22+F22 -> 25309 | N22: 100 | O22: =INT(P14+AF13) -> 20934 | W22: 100 | X22: =INT(Y14+AD13) -> 37525
E23: た | F23: =$O$53 -> 3300 | G23: た | H23: =C22+F23 -> 24234 | I23: （相生下水） | N23: 300 | O23: =INT(P14+AF14) -> 291623 | W23: 300 | X23: =INT(Y14+AD14) -> 578903
B24: 300mm | C24: =O23 -> 291623 | E24: 相 | F24: =$O$38 -> 4375 | G24: 相 | H24: =C24+F24 -> 295998 | J24: 従量料金計算
E25: た | F25: =$O$53 -> 3300 | G25: た | H25: =C24+F25 -> 294923 | J25: １ケ月目 | R25: + | S25: ２ケ月目 | AA25: +
L26: =A4 -> 25 | M26: ㎥ | U26: =A4-L26 -> 0 | V26: ㎥ | AB26: 基本料金 | AC26: 単価 | AD26: 1173
K27: 単価 | L27: 税込み単価 | T27: 単価 | U27: 税込み単価 | AB27: 1ケ月（円） | AE27: 2ケ月（円）
I28: 5 | J28: 6～10 | K28: 42 | L28: =K28*(1+$H$4/100) -> 46.2 | M28: 円 | N28: × | O28: =IF(L26>=10,I28,IF(L26>5,L26-5,0)) -> 5 | P28: =L28*O28 -> 231 | Q28: 円 | S28: 6～10 | T28: 42 | U28: =T28*(1+$H$4/100) -> 46.2 | V28: 円 | W28: × | X28: =IF(U26>=10,I28,IF(U26>5,U26-5,0)) -> 0 | Y28: =U28*X28 -> 0 | Z28: 円 | AB28: =AD26*(1+$H$4/100) -> 1290.3 | AE28: =AB28*2 -> 2580.6
I29: 10 | J29: 11～20 | K29: 159 | L29: =K29*(1+$H$4/100) -> 174.9 | M29: 円 | N29: × | O29: =IF(L26>=20,I29,IF(L26>10,L26-10,0)) -> 10 | P29: =L29*O29 -> 1749 | Q29: 円 | S29: 11～20 | T29: 159 | U29: =T29*(1+$H$4/100) -> 174.9 | V29: 円 | W29: × | X29: =IF(U26>=20,I29,IF(U26>10,U26-10,0)) -> 0 | Y29: =U29*X29 -> 0 | Z29: 円
I30: 10 | J30: 21～30 | K30: 201 | L30: 221.1 | M30: 円 | N30: × | O30: =IF(L26>=30,I30,IF(L26>20,L26-20,0)) -> 5 | P30: =L30*O30 -> 1105.5 | Q30: 円 | S30: 21～30 | T30: 201 | U30: 221.1 | V30: 円 | W30: × | X30: =IF(U26>=30,I30,IF(U26>20,U26-20,0)) -> 0 | Y30: =U30*X30 -> 0 | Z30: 円
I31: 20 | J31: 31～50 | K31: 224 | L31: 246.4 | M31: 円 | N31: × | O31: =IF(L26>=50,I31,IF(L26>30,L26-30,0)) -> 0 | P31: 0 | Q31: 円 | S31: 31～50 | T31: 224 | U31: 246.4 | V31: 円 | W31: × | X31: =IF(U26>=50,I31,IF(U26>30,U26-30,0)) -> 0 | Y31: =U31*X31 -> 0 | Z31: 円
I32: 50 | J32: 51～100 | K32: 245 | L32: 269.5 | M32: 円 | N32: × | O32: =IF(L26>=100,I32,IF(L26>50,L26-50,0)) -> 0 | P32: 0 | Q32: 円 | S32: 51～100 | T32: 245 | U32: 269.5 | V32: 円 | W32: × | X32: =IF(U26>=100,I32,IF(U26>50,U26-50,0)) -> 0 | Y32: 0 | Z32: 円
I33: 100 | J33: 101～200 | K33: 266 | L33: 292.6 | M33: 円 | N33: × | O33: =IF(L26>=200,I33,IF(L26>100,L26-100,0)) -> 0 | P33: 0 | Q33: 円 | S33: 101～200 | T33: 266 | U33: 292.6 | V33: 円 | W33: × | X33: =IF(U26>=200,I33,IF(U26>100,U26-100,0)) -> 0 | Y33: 0 | Z33: 円
I34: 200 | J34: 201～ | K34: 276 | L34: 303.6 | M34: 円 | N34: × | O34: =IF(L26>=200,L26-200,0) -> 0 | P34: 0 | Q34: 円 | S34: 201～ | T34: 276 | U34: 303.6 | V34: 円 | W34: × | X34: =IF(U26>=200,U26-200,0) -> 0 | Y34: 0 | Z34: 円
J35: (㎥) | O35: 計 | P35: =SUM(P28:P34) -> 3085.5 | Q35: 円 | S35: (㎥) | X35: 計 | Y35: =SUM(Y28:Y34) -> 0 | Z35: 円
O38: =INT(P35+AB28) -> 4375 | X38: =INT(Y35+AB28) -> 1290
I41: （たつの下水） | N41: 25 | W41: 25
J42: 従量料金計算
J43: １ケ月目 | R43: + | S43: ２ケ月目 | AA43: +
L44: =A4 -> 25 | M44: ㎥ | U44: =A4-L44 -> 0 | V44: ㎥ | AB44: 基本料金 | AC44: 単価 | AD44: 900
K45: 単価 | L45: 税込み単価 | T45: 単価 | U45: 税込み単価 | AB45: 1ケ月（円） | AE45: 2ケ月（円）
I46: 10 | J46: 11～20 | K46: 130 | L46: =K46*(1+$H$4/100) -> 143 | M46: 円 | N46: × | O46: =IF(L44>=20,I46,IF(L44>10,L44-10,0)) -> 10 | P46: =L46*O46 -> 1430 | Q46: 円 | S46: 11～20 | T46: 130 | U46: =T46*(1+$H$4/100) -> 143 | V46: 円 | W46: × | X46: =IF(U44>=20,I46,IF(U44>10,U44-10,0)) -> 0 | Y46: =U46*X46 -> 0 | Z46: 円 | AB46: =AD44*(1+$H$4/100) -> 990 | AE46: =AB46*2 -> 1980
I47: 20 | J47: 21～40 | K47: 160 | L47: =K47*(1+$H$4/100) -> 176 | M47: 円 | N47: × | O47: =IF(L44>=40,I47,IF(L44>20,L44-20,0)) -> 5 | P47: =L47*O47 -> 880 | Q47: 円 | S47: 21～40 | T47: 160 | U47: =T47*(1+$H$4/100) -> 176 | V47: 円 | W47: × | X47: =IF(U44>=40,I47,IF(U44>20,U44-20,0)) -> 0 | Y47: =U47*X47 -> 0 | Z47: 円
I48: 60 | J48: 41～100 | K48: 200 | L48: 220 | M48: 円 | N48: × | O48: =IF(L44>=100,I48,IF(L44>40,L44-40,0)) -> 0 | P48: =L48*O48 -> 0 | Q48: 円 | S48: 41～100 | T48: 200 | U48: 220 | V48: 円 | W48: × | X48: =IF(U44>=100,I48,IF(U44>40,U44-40,0)) -> 0 | Y48: =U48*X48 -> 0 | Z48: 円
J49: 101～ | K49: 220 | L49: 242 | M49: 円 | N49: × | O49: =IF(L44>=100,L44-100,0) -> 0 | P49: 0 | Q49: 円 | S49: 101～ | T49: 220 | U49: 242 | V49: 円 | W49: × | X49: =IF(U44>=100,U44-100,0) -> 0 | Y49: 0 | Z49: 円
J50: (㎥) | O50: 計 | P50: =SUM(P46:P49) -> 2310 | Q50: 円 | S50: (㎥) | X50: 計 | Y50: =SUM(Y46:Y49) -> 0 | Z50: 円
O53: =INT(P50+AB46) -> 3300 | X53: =INT(Y50+AB46) -> 990

Sheet 1ヶ月料金計算（大口径） (hidden)
I2: （水道料金）
H3: 税率 | J3: 従量料金計算
A4: =C6 -> 0 | C4: 水量を入力してください。 | H4: 10 | J4: １ケ月目 | R4: + | S4: ２ケ月目 | AA4: +
L5: =A4 -> 0 | M5: ㎥ | U5: =A4-L5 -> 0 | V5: ㎥ | AB5: 基本料金
K6: 単価 | L6: 税込み単価 | T6: 単価 | U6: 税込み単価 | AB6: 口径 | AC6: 単価 | AD6: 1ケ月 | AF6: ２ケ月
I7: 10 | J7: 6～10 | K7: 43 | L7: =K7*(1+$H$4/100) -> 47.3 | M7: 円 | N7: × | O7: =IF(L5>=10,I7,IF(L5>0,L5-0,0)) -> 0 | P7: =L7*O7 -> 0 | Q7: 円 | S7: 6～10 | T7: 43 | U7: =T7*(1+$H$4/100) -> 47.3 | V7: 円 | W7: × | X7: =IF(U5>=10,I7,IF(U5>0,U5-0,0)) -> 0 | Y7: =U7*X7 -> 0 | Z7: 円 | AB7: 13mm | AC7: 543 | AD7: =AC7*(1+$H$4/100) -> 597.3 | AE7: 円 | AF7: =INT(AD7*2) -> 1194 | AG7: 円
H8: ㎥ | I8: 10 | J8: 11～20 | K8: 90 | L8: =K8*(1+$H$4/100) -> 99 | M8: 円 | N8: × | O8: =IF(L5>=20,I8,IF(L5>10,L5-10,0)) -> 0 | P8: =L8*O8 -> 0 | Q8: 円 | S8: 11～20 | T8: 90 | U8: =T8*(1+$H$4/100) -> 99 | V8: 円 | W8: × | X8: =IF(U5>=20,I8,IF(U5>10,U5-10,0)) -> 0 | Y8: =U8*X8 -> 0 | Z8: 円 | AB8: 20mm | AC8: 714 | AD8: =AC8*(1+$H$4/100) -> 785.4 | AE8: 円 | AF8: =INT(AD8*2) -> 1570 | AG8: 円
I9: 10 | J9: 21～30 | K9: 129 | L9: 141.9 | M9: 円 | N9: × | O9: =IF(L5>=30,I9,IF(L5>20,L5-20,0)) -> 0 | P9: 0 | Q9: 円 | S9: 21～30 | T9: 129 | U9: 141.9 | V9: 円 | W9: × | X9: =IF(U5>=30,I9,IF(U5>20,U5-20,0)) -> 0 | Y9: =U9*X9 -> 0 | Z9: 円 | AB9: 25mm | AC9: 1581 | AD9: 1739.1 | AE9: 円 | AF9: =INT(AD9*2) -> 3478 | AG9: 円
I10: 20 | J10: 31～50 | K10: 157 | L10: 172.7 | M10: 円 | N10: × | O10: =IF(L5>=50,I10,IF(L5>30,L5-30,0)) -> 0 | P10: 0 | Q10: 円 | S10: 31～50 | T10: 157 | U10: 172.7 | V10: 円 | W10: × | X10: =IF(U5>=50,I10,IF(U5>30,U5-30,0)) -> 0 | Y10: =U10*X10 -> 0 | Z10: 円 | AB10: 40mm | AC10: 3752 | AD10: 4127.2 | AE10: 円 | AF10: =INT(AD10*2) -> 8254 | AG10: 円
I11: 50 | J11: 51～100 | K11: 186 | L11: 204.6 | M11: 円 | N11: × | O11: =IF(L5>=100,I11,IF(L5>50,L5-50,0)) -> 0 | P11: 0 | Q11: 円 | S11: 51～100 | T11: 186 | U11: 204.6 | V11: 円 | W11: × | X11: =IF(U5>=100,I11,IF(U5>50,U5-50,0)) -> 0 | Y11: 0 | Z11: 円 | AB11: 50mm | AC11: 6952 | AD11: 7647.2 | AE11: 円 | AF11: 15294 | AG11: 円
I12: 100 | J12: 101～200 | K12: 214 | L12: 235.4 | M12: 円 | N12: × | O12: =IF(L5>=200,I12,IF(L5>100,L5-100,0)) -> 0 | P12: 0 | Q12: 円 | S12: 101～200 | T12: 214 | U12: 235.4 | V12: 円 | W12: × | X12: =IF(U5>=200,I12,IF(U5>100,U5-100,0)) -> 0 | Y12: 0 | Z12: 円 | AB12: 75mm | AC12: 17114 | AD12: 18825.4 | AE12: 円 | AF12: 37650 | AG12: 円
J13: 201～ | K13: 224 | L13: 246.4 | M13: 円 | N13: × | O13: =IF(L5>=200,L5-200,0) -> 0 | P13: 0 | Q13: 円 | S13: 201～ | T13: 224 | U13: 246.4 | V13: 円 | W13: × | X13: =IF(U5>=200,U5-200,0) -> 0 | Y13: 0 | Z13: 円 | AB13: 100mm | AC13: 34114 | AD13: 37525.4 | AE13: 円 | AF13: 75050 | AG13: 円
B14: 1ケ月計算 | E14: ※水量以外のセルへの入力や消去はしないでください。 | J14: (㎥) | O14: 計 | P14: =SUM(P7:P13) -> 0 | Q14: 円 | S14: (㎥) | X14: 計 | Y14: =SUM(Y7:Y13) -> 0 | Z14: 円 | AB14: 300mm | AC14: 526276 | AD14: 578903.6 | AE14: 円 | AF14: 1157807 | AG14: 円
C15: 水道料金 | E15: 下水道使用料 | G15: 合 計
B16: 40mm | C16: =O19 -> 4127 | E16: 相 | F16: =$O$38 -> 1290 | G16: 相 | H16: =C16+F16 -> 5417 | N16: 13 | P16: =INT(P14+AD7) -> 597 | W16: 13 | Y16: =INT(Y14+AD7) -> 597
E17: た | F17: =$O$53 -> 990 | G17: た | H17: =C16+F17 -> 5117 | N17: 20 | P17: =INT(P14+AD8) -> 785 | W17: 20 | Y17: =INT(Y14+AD8) -> 785
B18: 50mm | C18: =O20 -> 7647 | E18: 相 | F18: =$O$38 -> 1290 | G18: 相 | H18: =C18+F18 -> 8937 | N18: 25 | P18: =INT(P14+AD9) -> 1739 | W18: 25 | Y18: =INT(Y14+AD9) -> 1739
E19: た | F19: =$O$53 -> 990 | G19: た | H19: =C18+F19 -> 8637 | N19: 40 | O19: =INT(P14+AD10) -> 4127 | W19: 40 | X19: =INT(Y14+AD10) -> 4127
B20: 75mm | C20: =O21 -> 18825 | E20: 相 | F20: =$O$38 -> 1290 | G20: 相 | H20: =C20+F20 -> 20115 | N20: 50 | O20: =INT(P14+AD11) -> 7647 | W20: 50 | X20: =INT(Y14+AD11) -> 7647
E21: た | F21: =$O$53 -> 990 | G21: た | H21: =C20+F21 -> 19815 | N21: 75 | O21: =INT(P14+AD12) -> 18825 | W21: 75 | X21: =INT(Y14+AD12) -> 18825
B22: 100mm | C22: =O22 -> 37525 | E22: 相 | F22: =$O$38 -> 1290 | G22: 相 | H22: =C22+F22 -> 38815 | N22: 100 | O22: =INT(P14+AD13) -> 37525 | W22: 100 | X22: =INT(Y14+AD13) -> 37525
E23: た | F23: =$O$53 -> 990 | G23: た | H23: =C22+F23 -> 38515 | I23: （相生下水） | N23: 300 | O23: =INT(P14+AD14) -> 578903 | W23: 300 | X23: =INT(Y14+AD14) -> 578903
B24: 300mm | C24: =O23 -> 578903 | E24: 相 | F24: =$O$38 -> 1290 | G24: 相 | H24: =C24+F24 -> 580193 | J24: 従量料金計算
E25: た | F25: =$O$53 -> 990 | G25: た | H25: =C24+F25 -> 579893 | J25: １ケ月目 | R25: + | S25: ２ケ月目 | AA25: +
L26: =A4 -> 0 | M26: ㎥ | U26: =A4-L26 -> 0 | V26: ㎥ | AB26: 基本料金 | AC26: 単価 | AD26: 1173
K27: 単価 | L27: 税込み単価 | T27: 単価 | U27: 税込み単価 | AB27: 1ケ月（円） | AE27: 2ケ月（円）
I28: 5 | J28: 6～10 | K28: 42 | L28: =K28*(1+$H$4/100) -> 46.2 | M28: 円 | N28: × | O28: =IF(L26>=10,I28,IF(L26>5,L26-5,0)) -> 0 | P28: =L28*O28 -> 0 | Q28: 円 | S28: 6～10 | T28: 42 | U28: =T28*(1+$H$4/100) -> 46.2 | V28: 円 | W28: × | X28: =IF(U26>=10,I28,IF(U26>5,U26-5,0)) -> 0 | Y28: =U28*X28 -> 0 | Z28: 円 | AB28: =AD26*(1+$H$4/100) -> 1290.3 | AE28: =AB28*2 -> 2580.6
I29: 10 | J29: 11～20 | K29: 159 | L29: =K29*(1+$H$4/100) -> 174.9 | M29: 円 | N29: × | O29: =IF(L26>=20,I29,IF(L26>10,L26-10,0)) -> 0 | P29: =L29*O29 -> 0 | Q29: 円 | S29: 11～20 | T29: 159 | U29: =T29*(1+$H$4/100) -> 174.9 | V29: 円 | W29: × | X29: =IF(U26>=20,I29,IF(U26>10,U26-10,0)) -> 0 | Y29: =U29*X29 -> 0 | Z29: 円
I30: 10 | J30: 21～30 | K30: 201 | L30: 221.1 | M30: 円 | N30: × | O30: =IF(L26>=30,I30,IF(L26>20,L26-20,0)) -> 0 | P30: =L30*O30 -> 0 | Q30: 円 | S30: 21～30 | T30: 201 | U30: 221.1 | V30: 円 | W30: × | X30: =IF(U26>=30,I30,IF(U26>20,U26-20,0)) -> 0 | Y30: =U30*X30 -> 0 | Z30: 円
I31: 20 | J31: 31～50 | K31: 224 | L31: 246.4 | M31: 円 | N31: × | O31: =IF(L26>=50,I31,IF(L26>30,L26-30,0)) -> 0 | P31: 0 | Q31: 円 | S31: 31～50 | T31: 224 | U31: 246.4 | V31: 円 | W31: × | X31: =IF(U26>=50,I31,IF(U26>30,U26-30,0)) -> 0 | Y31: =U31*X31 -> 0 | Z31: 円
I32: 50 | J32: 51～100 | K32: 245 | L32: 269.5 | M32: 円 | N32: × | O32: =IF(L26>=100,I32,IF(L26>50,L26-50,0)) -> 0 | P32: 0 | Q32: 円 | S32: 51～100 | T32: 245 | U32: 269.5 | V32: 円 | W32: × | X32: =IF(U26>=100,I32,IF(U26>50,U26-50,0)) -> 0 | Y32: 0 | Z32: 円
I33: 100 | J33: 101～200 | K33: 266 | L33: 292.6 | M33: 円 | N33: × | O33: =IF(L26>=200,I33,IF(L26>100,L26-100,0)) -> 0 | P33: 0 | Q33: 円 | S33: 101～200 | T33: 266 | U33: 292.6 | V33: 円 | W33: × | X33: =IF(U26>=200,I33,IF(U26>100,U26-100,0)) -> 0 | Y33: 0 | Z33: 円
I34: 200 | J34: 201～ | K34: 276 | L34: 303.6 | M34: 円 | N34: × | O34: =IF(L26>=200,L26-200,0) -> 0 | P34: 0 | Q34: 円 | S34: 201～ | T34: 276 | U34: 303.6 | V34: 円 | W34: × | X34: =IF(U26>=200,U26-200,0) -> 0 | Y34: 0 | Z34: 円
J35: (㎥) | O35: 計 | P35: =SUM(P28:P34) -> 0 | Q35: 円 | S35: (㎥) | X35: 計 | Y35: =SUM(Y28:Y34) -> 0 | Z35: 円
O38: =INT(P35+AB28) -> 1290 | X38: =INT(Y35+AB28) -> 1290
I41: （たつの下水） | N41: 25 | W41: 25
J42: 従量料金計算
J43: １ケ月目 | R43: + | S43: ２ケ月目 | AA43: +
L44: =A4 -> 0 | M44: ㎥ | U44: =A4-L44 -> 0 | V44: ㎥ | AB44: 基本料金 | AC44: 単価 | AD44: 900
K45: 単価 | L45: 税込み単価 | T45: 単価 | U45: 税込み単価 | AB45: 1ケ月（円） | AE45: 2ケ月（円）
I46: 10 | J46: 11～20 | K46: 130 | L46: =K46*(1+$H$4/100) -> 143 | M46: 円 | N46: × | O46: =IF(L44>=20,I46,IF(L44>10,L44-10,0)) -> 0 | P46: =L46*O46 -> 0 | Q46: 円 | S46: 11～20 | T46: 130 | U46: =T46*(1+$H$4/100) -> 143 | V46: 円 | W46: × | X46: =IF(U44>=20,I46,IF(U44>10,U44-10,0)) -> 0 | Y46: =U46*X46 -> 0 | Z46: 円 | AB46: =AD44*(1+$H$4/100) -> 990 | AE46: =AB46*2 -> 1980
I47: 20 | J47: 21～40 | K47: 160 | L47: =K47*(1+$H$4/100) -> 176 | M47: 円 | N47: × | O47: =IF(L44>=40,I47,IF(L44>20,L44-20,0)) -> 0 | P47: =L47*O47 -> 0 | Q47: 円 | S47: 21～40 | T47: 160 | U47: =T47*(1+$H$4/100) -> 176 | V47: 円 | W47: × | X47: =IF(U44>=40,I47,IF(U44>20,U44-20,0)) -> 0 | Y47: =U47*X47 -> 0 | Z47: 円
I48: 60 | J48: 41～100 | K48: 200 | L48: 220 | M48: 円 | N48: × | O48: =IF(L44>=100,I48,IF(L44>40,L44-40,0)) -> 0 | P48: =L48*O48 -> 0 | Q48: 円 | S48: 41～100 | T48: 200 | U48: 220 | V48: 円 | W48: × | X48: =IF(U44>=100,I48,IF(U44>40,U44-40,0)) -> 0 | Y48: =U48*X48 -> 0 | Z48: 円
J49: 101～ | K49: 220 | L49: 242 | M49: 円 | N49: × | O49: =IF(L44>=100,L44-100,0) -> 0 | P49: 0 | Q49: 円 | S49: 101～ | T49: 220 | U49: 242 | V49: 円 | W49: × | X49: =IF(U44>=100,U44-100,0) -> 0 | Y49: 0 | Z49: 円
J50: (㎥) | O50: 計 | P50: =SUM(P46:P49) -> 0 | Q50: 円 | S50: (㎥) | X50: 計 | Y50: =SUM(Y46:Y49) -> 0 | Z50: 円
O53: =INT(P50+AB46) -> 990 | X53: =INT(Y50+AB46) -> 990

Sheet 2ヶ月料金計算（大口径） (hidden)
I2: （水道料金）
H3: 税率 | J3: 従量料金計算
A4: =C6 -> 0 | C4: 水量を入力してください。 | H4: 10 | J4: １ケ月目 | R4: + | S4: ２ケ月目 | AA4: +
L5: =ROUNDDOWN(A4/2,0) -> 0 | M5: ㎥ | U5: =A4-L5 -> 0 | V5: ㎥ | AB5: 基本料金
K6: 単価 | L6: 税込み単価 | T6: 単価 | U6: 税込み単価 | AB6: 口径 | AC6: 単価 | AD6: 1ケ月 | AF6: ２ケ月
I7: 10 | J7: 6～10 | K7: 43 | L7: =K7*(1+$H$4/100) -> 47.3 | M7: 円 | N7: × | O7: =IF(L5>=10,I7,IF(L5>0,L5-0,0)) -> 0 | P7: =L7*O7 -> 0 | Q7: 円 | S7: 6～10 | T7: 43 | U7: =T7*(1+$H$4/100) -> 47.3 | V7: 円 | W7: × | X7: =IF(U5>=10,I7,IF(U5>0,U5-0,0)) -> 0 | Y7: =U7*X7 -> 0 | Z7: 円 | AB7: 13mm | AC7: 543 | AD7: =AC7*(1+$H$4/100) -> 597.3 | AE7: 円 | AF7: =INT(AD7*2) -> 1194 | AG7: 円
H8: ㎥ | I8: 10 | J8: 11～20 | K8: 90 | L8: =K8*(1+$H$4/100) -> 99 | M8: 円 | N8: × | O8: =IF(L5>=20,I8,IF(L5>10,L5-10,0)) -> 0 | P8: =L8*O8 -> 0 | Q8: 円 | S8: 11～20 | T8: 90 | U8: =T8*(1+$H$4/100) -> 99 | V8: 円 | W8: × | X8: =IF(U5>=20,I8,IF(U5>10,U5-10,0)) -> 0 | Y8: =U8*X8 -> 0 | Z8: 円 | AB8: 20mm | AC8: 714 | AD8: =AC8*(1+$H$4/100) -> 785.4 | AE8: 円 | AF8: =INT(AD8*2) -> 1570 | AG8: 円
I9: 10 | J9: 21～30 | K9: 129 | L9: 141.9 | M9: 円 | N9: × | O9: =IF(L5>=30,I9,IF(L5>20,L5-20,0)) -> 0 | P9: 0 | Q9: 円 | S9: 21～30 | T9: 129 | U9: 141.9 | V9: 円 | W9: × | X9: =IF(U5>=30,I9,IF(U5>20,U5-20,0)) -> 0 | Y9: =U9*X9 -> 0 | Z9: 円 | AB9: 25mm | AC9: 1581 | AD9: 1739.1 | AE9: 円 | AF9: =INT(AD9*2) -> 3478 | AG9: 円
I10: 20 | J10: 31～50 | K10: 157 | L10: 172.7 | M10: 円 | N10: × | O10: =IF(L5>=50,I10,IF(L5>30,L5-30,0)) -> 0 | P10: 0 | Q10: 円 | S10: 31～50 | T10: 157 | U10: 172.7 | V10: 円 | W10: × | X10: =IF(U5>=50,I10,IF(U5>30,U5-30,0)) -> 0 | Y10: =U10*X10 -> 0 | Z10: 円 | AB10: 40mm | AC10: 3752 | AD10: 4127.2 | AE10: 円 | AF10: =INT(AD10*2) -> 8254 | AG10: 円
I11: 50 | J11: 51～100 | K11: 186 | L11: 204.6 | M11: 円 | N11: × | O11: =IF(L5>=100,I11,IF(L5>50,L5-50,0)) -> 0 | P11: 0 | Q11: 円 | S11: 51～100 | T11: 186 | U11: 204.6 | V11: 円 | W11: × | X11: =IF(U5>=100,I11,IF(U5>50,U5-50,0)) -> 0 | Y11: 0 | Z11: 円 | AB11: 50mm | AC11: 6952 | AD11: 7647.2 | AE11: 円 | AF11: 15294 | AG11: 円
I12: 100 | J12: 101～200 | K12: 214 | L12: 235.4 | M12: 円 | N12: × | O12: =IF(L5>=200,I12,IF(L5>100,L5-100,0)) -> 0 | P12: 0 | Q12: 円 | S12: 101～200 | T12: 214 | U12: 235.4 | V12: 円 | W12: × | X12: =IF(U5>=200,I12,IF(U5>100,U5-100,0)) -> 0 | Y12: 0 | Z12: 円 | AB12: 75mm | AC12: 17114 | AD12: 18825.4 | AE12: 円 | AF12: 37650 | AG12: 円
J13: 201～ | K13: 224 | L13: 246.4 | M13: 円 | N13: × | O13: =IF(L5>=200,L5-200,0) -> 0 | P13: 0 | Q13: 円 | S13: 201～ | T13: 224 | U13: 246.4 | V13: 円 | W13: × | X13: =IF(U5>=200,U5-200,0) -> 0 | Y13: 0 | Z13: 円 | AB13: 100mm | AC13: 34114 | AD13: 37525.4 | AE13: 円 | AF13: 75050 | AG13: 円
B14: ２ケ月計算 | E14: ※水量以外のセルへの入力や消去はしないでください。 | J14: (㎥) | O14: 計 | P14: =SUM(P7:P13) -> 0 | Q14: 円 | S14: (㎥) | X14: 計 | Y14: =SUM(Y7:Y13) -> 0 | Z14: 円 | AB14: 300mm | AC14: 526276 | AD14: 578903.6 | AE14: 円 | AF14: 1157807 | AG14: 円
C15: 水道料金 | E15: 下水道使用料 | G15: 合 計
B16: 40mm | C16: =O19+X19 -> 8254 | E16: 相 | F16: =$O$38+$X$38 -> 2580 | G16: 相 | H16: =C16+F16 -> 10834 | N16: 13 | P16: =INT(P14+AD7) -> 597 | W16: 13 | Y16: =INT(Y14+AD7) -> 597
E17: た | F17: =$O$53+$X$53 -> 1980 | G17: た | H17: =C16+F17 -> 10234 | N17: 20 | P17: =INT(P14+AD8) -> 785 | W17: 20 | Y17: =INT(Y14+AD8) -> 785
B18: 50mm | C18: =O20+X20 -> 15294 | E18: 相 | F18: =$O$38+$X$38 -> 2580 | G18: 相 | H18: =C18+F18 -> 17874 | N18: 25 | P18: =INT(P14+AD9) -> 1739 | W18: 25 | Y18: =INT(Y14+AD9) -> 1739
E19: た | F19: =$O$53+$X$53 -> 1980 | G19: た | H19: =C18+F19 -> 17274 | N19: 40 | O19: =INT(P14+AD10) -> 4127 | W19: 40 | X19: =INT(Y14+AD10) -> 4127
B20: 75mm | C20: =O21+X21 -> 37650 | E20: 相 | F20: =$O$38+$X$38 -> 2580 | G20: 相 | H20: =C20+F20 -> 40230 | N20: 50 | O20: =INT(P14+AD11) -> 7647 | W20: 50 | X20: =INT(Y14+AD11) -> 7647
E21: た | F21: =$O$53+$X$53 -> 1980 | G21: た | H21: =C20+F21 -> 39630 | N21: 75 | O21: =INT(P14+AD12) -> 18825 | W21: 75 | X21: =INT(Y14+AD12) -> 18825
B22: 100mm | C22: =O22+X22 -> 75050 | E22: 相 | F22: =$O$38+$X$38 -> 2580 | G22: 相 | H22: =C22+F22 -> 77630 | N22: 100 | O22: =INT(P14+AD13) -> 37525 | W22: 100 | X22: =INT(Y14+AD13) -> 37525
E23: た | F23: =$O$53+$X$53 -> 1980 | G23: た | H23: =C22+F23 -> 77030 | I23: （相生下水） | N23: 300 | O23: =INT(P14+AD14) -> 578903 | W23: 300 | X23: =INT(Y14+AD14) -> 578903
B24: 300mm | C24: =O23+X23 -> 1157806 | E24: 相 | F24: =$O$38+$X$38 -> 2580 | G24: 相 | H24: =C24+F24 -> 1160386 | J24: 従量料金計算
E25: た | F25: =$O$53+$X$53 -> 1980 | G25: た | H25: =C24+F25 -> 1159786 | J25: １ケ月目 | R25: + | S25: ２ケ月目 | AA25: +
L26: =ROUNDDOWN(A4/2,0) -> 0 | M26: ㎥ | U26: =A4-L26 -> 0 | V26: ㎥ | AB26: 基本料金 | AC26: 単価 | AD26: 1173
K27: 単価 | L27: 税込み単価 | T27: 単価 | U27: 税込み単価 | AB27: 1ケ月（円） | AE27: 2ケ月（円）
I28: 5 | J28: 6～10 | K28: 42 | L28: =K28*(1+$H$4/100) -> 46.2 | M28: 円 | N28: × | O28: =IF(L26>=10,I28,IF(L26>5,L26-5,0)) -> 0 | P28: =L28*O28 -> 0 | Q28: 円 | S28: 6～10 | T28: 42 | U28: =T28*(1+$H$4/100) -> 46.2 | V28: 円 | W28: × | X28: =IF(U26>=10,I28,IF(U26>5,U26-5,0)) -> 0 | Y28: =U28*X28 -> 0 | Z28: 円 | AB28: =AD26*(1+$H$4/100) -> 1290.3 | AE28: =AB28*2 -> 2580.6
I29: 10 | J29: 11～20 | K29: 159 | L29: =K29*(1+$H$4/100) -> 174.9 | M29: 円 | N29: × | O29: =IF(L26>=20,I29,IF(L26>10,L26-10,0)) -> 0 | P29: =L29*O29 -> 0 | Q29: 円 | S29: 11～20 | T29: 159 | U29: =T29*(1+$H$4/100) -> 174.9 | V29: 円 | W29: × | X29: =IF(U26>=20,I29,IF(U26>10,U26-10,0)) -> 0 | Y29: =U29*X29 -> 0 | Z29: 円
I30: 10 | J30: 21～30 | K30: 201 | L30: 221.1 | M30: 円 | N30: × | O30: =IF(L26>=30,I30,IF(L26>20,L26-20,0)) -> 0 | P30: =L30*O30 -> 0 | Q30: 円 | S30: 21～30 | T30: 201 | U30: 221.1 | V30: 円 | W30: × | X30: =IF(U26>=30,I30,IF(U26>20,U26-20,0)) -> 0 | Y30: =U30*X30 -> 0 | Z30: 円
I31: 20 | J31: 31～50 | K31: 224 | L31: 246.4 | M31: 円 | N31: × | O31: =IF(L26>=50,I31,IF(L26>30,L26-30,0)) -> 0 | P31: 0 | Q31: 円 | S31: 31～50 | T31: 224 | U31: 246.4 | V31: 円 | W31: × | X31: =IF(U26>=50,I31,IF(U26>30,U26-30,0)) -> 0 | Y31: =U31*X31 -> 0 | Z31: 円
I32: 50 | J32: 51～100 | K32: 245 | L32: 269.5 | M32: 円 | N32: × | O32: =IF(L26>=100,I32,IF(L26>50,L26-50,0)) -> 0 | P32: 0 | Q32: 円 | S32: 51～100 | T32: 245 | U32: 269.5 | V32: 円 | W32: × | X32: =IF(U26>=100,I32,IF(U26>50,U26-50,0)) -> 0 | Y32: 0 | Z32: 円
I33: 100 | J33: 101～200 | K33: 266 | L33: 292.6 | M33: 円 | N33: × | O33: =IF(L26>=200,I33,IF(L26>100,L26-100,0)) -> 0 | P33: 0 | Q33: 円 | S33: 101～200 | T33: 266 | U33: 292.6 | V33: 円 | W33: × | X33: =IF(U26>=200,I33,IF(U26>100,U26-100,0)) -> 0 | Y33: 0 | Z33: 円
I34: 200 | J34: 201～ | K34: 276 | L34: 303.6 | M34: 円 | N34: × | O34: =IF(L26>=200,L26-200,0) -> 0 | P34: 0 | Q34: 円 | S34: 201～ | T34: 276 | U34: 303.6 | V34: 円 | W34: × | X34: =IF(U26>=200,U26-200,0) -> 0 | Y34: 0 | Z34: 円
J35: (㎥) | O35: 計 | P35: =SUM(P28:P34) -> 0 | Q35: 円 | S35: (㎥) | X35: 計 | Y35: =SUM(Y28:Y34) -> 0 | Z35: 円
O38: =INT(P35+AB28) -> 1290 | X38: =INT(Y35+AB28) -> 1290
I41: （たつの下水） | N41: 25 | W41: 25
J42: 従量料金計算
J43: １ケ月目 | R43: + | S43: ２ケ月目 | AA43: +
L44: =ROUNDDOWN(A4/2,0) -> 0 | M44: ㎥ | U44: =A4-L44 -> 0 | V44: ㎥ | AB44: 基本料金 | AC44: 単価 | AD44: 900
K45: 単価 | L45: 税込み単価 | T45: 単価 | U45: 税込み単価 | AB45: 1ケ月（円） | AE45: 2ケ月（円）
I46: 10 | J46: 11～20 | K46: 130 | L46: =K46*(1+$H$4/100) -> 143 | M46: 円 | N46: × | O46: =IF(L44>=20,I46,IF(L44>10,L44-10,0)) -> 0 | P46: =L46*O46 -> 0 | Q46: 円 | S46: 11～20 | T46: 130 | U46: =T46*(1+$H$4/100) -> 143 | V46: 円 | W46: × | X46: =IF(U44>=20,I46,IF(U44>10,U44-10,0)) -> 0 | Y46: =U46*X46 -> 0 | Z46: 円 | AB46: =AD44*(1+$H$4/100) -> 990 | AE46: =AB46*2 -> 1980
I47: 20 | J47: 21～40 | K47: 160 | L47: =K47*(1+$H$4/100) -> 176 | M47: 円 | N47: × | O47: =IF(L44>=40,I47,IF(L44>20,L44-20,0)) -> 0 | P47: =L47*O47 -> 0 | Q47: 円 | S47: 21～40 | T47: 160 | U47: =T47*(1+$H$4/100) -> 176 | V47: 円 | W47: × | X47: =IF(U44>=40,I47,IF(U44>20,U44-20,0)) -> 0 | Y47: =U47*X47 -> 0 | Z47: 円
I48: 60 | J48: 41～100 | K48: 200 | L48: 220 | M48: 円 | N48: × | O48: =IF(L44>=100,I48,IF(L44>40,L44-40,0)) -> 0 | P48: =L48*O48 -> 0 | Q48: 円 | S48: 41～100 | T48: 200 | U48: 220 | V48: 円 | W48: × | X48: =IF(U44>=100,I48,IF(U44>40,U44-40,0)) -> 0 | Y48: =U48*X48 -> 0 | Z48: 円
J49: 101～ | K49: 220 | L49: 242 | M49: 円 | N49: × | O49: =IF(L44>=100,L44-100,0) -> 0 | P49: 0 | Q49: 円 | S49: 101～ | T49: 220 | U49: 242 | V49: 円 | W49: × | X49: =IF(U44>=100,U44-100,0) -> 0 | Y49: 0 | Z49: 円
J50: (㎥) | O50: 計 | P50: =SUM(P46:P49) -> 0 | Q50: 円 | S50: (㎥) | X50: 計 | Y50: =SUM(Y46:Y49) -> 0 | Z50: 円
O53: =INT(P50+AB46) -> 990 | X53: =INT(Y50+AB46) -> 990
